Cogmind - Beta 14 @@@ ROGUE MODE // 2024.09.01 @ 20:51:27 Player: huluvu Result: Destroyed self with Rocket Launcher Performance ------------- Evolutions (0) 0 Regions Visited (2) 400 Robots Destroyed (23) 115 Value Destroyed (519) 519 Prototype IDs (0) 0 Alien Tech Used (0) 0 Bonus (0) 0 TOTAL SCORE: 1034 Bonus ------- None Cogmind --------- Core Integrity 0/250 Matter 167/300 Energy 160/160 System Corruption 0% Temperature Cool (0) Movement Walking (120) Location -10/Mines Parts ------- > --- POWER (1) -------- Light Nuclear Core > --- PROPULSION (2) --- Aluminum Leg Aluminum Leg > --- UTILITY (2) ------ Small Storage Unit Improved Terrain Scanner > --- WEAPON (2) ------- Small Laser Rocket Launcher > --- INVENTORY (8) ---- Aluminum Leg Aluminum Leg Heat Sink Sensor Array Small Laser Light Assault Rifle Grenade Launcher Mining Laser Peak State ------------ > --- POWER ------------ Light Nuclear Core > --- PROPULSION ------- Aluminum Leg Aluminum Leg > --- UTILITY ---------- Small Storage Unit Improved Terrain Scanner > --- WEAPON ----------- Small Laser Rocket Launcher > --- INVENTORY -------- Aluminum Leg Aluminum Leg Heat Sink Sensor Array Small Laser Light Assault Rifle Grenade Launcher Mining Laser [Rating: 12] Favorites ----------- Power Ion Engine Engine Ion Engine Power Core Light Nuclear Core Propulsion Aluminum Leg Treads Light Treads Leg Aluminum Leg Utility Small Storage Unit Device Sensor Array Storage Small Storage Unit Weapon Small Laser Energy Gun Small Laser Ballistic Gun Light Assault Rifle Launcher Rocket Launcher Build | -11 -10 -10 ------- Run | Yrd Mat Min Slots Evolved . | . . . Power . | . . . Propulsion . | . . . Utility . | . . . Weapon . | . . . Parts Attached 31 | 6 14 11 Power 4 | 1 2 1 Engine 3 | 1 2 . Core 1 | . . 1 Reactor . | . . . Propulsion 14 | 2 9 3 Treads 2 | 2 . . Leg 12 | . 9 3 Wheel . | . . . Hover . | . . . Flight . | . . . Utility 4 | 1 1 2 Device 3 | . 1 2 Storage 1 | 1 . . Processor . | . . . Hackware . | . . . Protection . | . . . Artifact . | . . . Weapon 9 | 2 2 5 Energy Gun 5 | 2 1 2 Energy Cannon . | . . . Ballistic Gun 1 | . 1 . Ballistic Cannon . | . . . Launcher 3 | . . 3 Special Weapon . | . . . Impact Weapon . | . . . Slashing Weapon . | . . . Piercing Weapon . | . . . Special Melee Weapon . | . . . Unidentified Prototypes . | . . . Parts Lost 4 | . 3 1 Power 2 | . 1 1 Propulsion 1 | . 1 . Utility . | . . . Weapon 1 | . 1 . Highest Loss Streak 2 | . 2 1 To Critical Strikes . | . . . Average Slot Usage (%) 96 | . 92 99 Engine 9 | . 9 10 Core 1 | . . 3 Treads 2 | . 5 . Leg 25 | . 22 28 Device 12 | . 11 14 Storage 14 | . 14 14 Energy Gun 21 | . 15 26 Ballistic Gun 6 | . 11 . Peak Build Rating 12 | 6 8 12 Average Rating 7 | 3 6 8 On Entrance 4 | . 6 8 Naked Turns . | . . . Heaviest Build 16 | 11 13 16 Greatest Support 40 | 40 40 20 Greatest Overweight (x) . | . . . Average Overweight (x) . | . . . Largest Inventory Capacity 8 | 8 8 8 Average Capacity 7 | 6 8 8 Most Carried 8 | 5 8 8 Average Carried 6 | 1 5 7 Final Capacity 8 | 8 8 8 Final Carried 8 | 4 8 8 Class Distribution -------------------- 51% | Scavenger-Mutant 48% | Mutant Dominant Class ---------------- Mutant | -10/Materials Scavenger-Mutant | -10/Mines Resources | -11 -10 -10 ----------- Run | Yrd Mat Min Matter Collected 499 | 260 190 49 Remotely . | . . . Salvage Created 588 | . 526 62 Parts 42 | . 33 9 Haulers Intercepted . | . . . Recyclers Shooed 4 | . 4 . Parts Field Recycled . | . . . Retrieved Matter . | . . . Parts Self-Destructed . | . . . Prevented . | . . . Kills | -11 -10 -10 ------- Run | Yrd Mat Min Combat Hostiles Destroyed 14 | . 11 3 Guns 11 | . 11 . AOE 3 | . . 3 Classes Destroyed 7 | . 6 1 Worker 2 | . 2 . Builder 2 | . 2 . Tunneler 1 | . . 1 Recycler 2 | . 2 . Watcher 2 | . 2 . Swarmer 4 | . 3 1 Grunt 10 | . 8 2 Best Kill Streak 9 | . 9 3 Combat Bots Only 3 | . 3 2 Max Kills in Single Turn 4 | . 4 2 Gunslinging . | . . . Exploded 1 | . . 1 Melee . | . . . Uniques/NPCs Destroyed . | . . . Combat | -11 -10 -10 -------- Run | Yrd Mat Min Hostile Shots Fired 160 | . 118 42 Missed 62 | . 45 17 Damage Taken 1309 | . 991 318 Core 268 | . 191 77 Absorbed by Shields . | . . . Core Remaining (%) 100 | 100 . . Volleys Fired 76 | . 64 12 Largest 2 | . 2 2 Hottest 80 | . 80 80 Shots Fired 150 | . 127 23 Gun 143 | . 127 16 Cannon . | . . . Launcher 7 | . . 7 Special . | . . . Kinetic 58 | . 58 . Thermal 79 | . 63 16 Explosive 7 | . . 7 Electromagnetic 6 | . 6 . Robot Hit Streak 9 | . 9 2 Robot Miss Streak 5 | . 5 3 Penetration Max . | . . . Secondary Targets 4 | . 4 . Max Gunslinging Chain 1 | . 1 . Shots Hit Robots 84 | . 79 5 Core Hits 39 | . 32 7 Critical Kills . | . . . Critical Parts Destroyed . | . . . Critical Strikes . | . . . Melee Attacks . | . . . Impact . | . . . Slashing . | . . . Piercing . | . . . Sneak Attacks . | . . . Combat Hostiles . | . . . Follow-up Attacks . | . . . Damage Inflicted 1874 | . 1483 391 Guns 831 | . 763 68 Cannons . | . . . Explosions 1043 | . 720 323 Melee . | . . . Ramming . | . . . Kinetic 313 | . 313 . Thermal 485 | . 417 68 Explosive 1043 | . 720 323 Electromagnetic 33 | . 33 . Impact . | . . . Slashing . | . . . Piercing . | . . . Highest Corruption . | . . . Average Corruption . | . . . Corruption Purged . | . . . Corruption Blocked . | . . . Overload Shots . | . . . Overflow Damage 90 | . 90 . Projectiles . | . . . Explosions 90 | . 90 . Melee . | . . . Knockbacks . | . . . Impact . | . . . Kinetic . | . . . Secondary . | . . . Self-Inflicted Damage 212 | . 187 25 Shots 3 | . 2 1 Rammed . | . . . Targets Rammed . | . . . Kicked . | . . . Crushed . | . . . Highest Temperature 180 | . 137 180 Average Temperature 44 | . 37 74 Received Heat Transfer 507 | . 387 120 Siege Activations . | . . . Robots Corrupted . | . . . Combat Hostiles . | . . . Parts Fried . | . . . Impact Corruptions . | . . . Robots Melted . | . . . Combat Hostiles . | . . . Parts Melted . | . . . Heat Transferred 1100 | . 950 150 Parts Sabotaged . | . . . Parts Stolen . | . . . Parts Stripped . | . . . Power Chain Reactions . | . . . Alert | -11 -10 -10 ------- Run | Yrd Mat Min Peak Influence 334 | . 334 189 Initial 87 | . . 87 Average 145 | . 193 130 Maximum Alert Level 1 | . 1 . Low Security (%) 78 | 100 52 100 Level 1 21 | . 47 . Level 2 . | . . . Level 3 . | . . . Level 4 . | . . . Level 5 . | . . . High Security . | . . . Max Security . | . . . Squads Dispatched 3 | . 3 . Investigation 1 | . 1 . Extermination . | . . . Reinforcement 2 | . 2 . Assault . | . . . Garrison . | . . . Intercept . | . . . Searches Triggered . | . . . Construction Impeded . | . . . Haulers Reinforced . | . . . Active Scanning Responses . | . . . Cargo Convoy Interrupts . | . . . Stealth | -11 -10 -10 --------- Run | Yrd Mat Min Distress Signals 1 | . 1 . Communications Jammed . | . . . Distress Signals . | . . . Times Spotted 29 | . 19 10 Peak Tracking Total 3 | . 3 3 Tactical Retreats 3 | . 1 2 Traps | -11 -10 -10 ------- Run | Yrd Mat Min Traps Triggered 1 | . 1 . Indirectly . | . . . Trap Hack Attempts . | . . . Triggered . | . . . Disarmed . | . . . Reprogrammed . | . . . Reused . | . . . Traps Extracted . | . . . Installed . | . . . Triggered . | . . . Machines | -11 -10 -10 ---------- Run | Yrd Mat Min Machines Disabled 5 | . 3 2 Max in Single Turn 2 | . 2 1 Machines Repaired . | . . . Machines Dismantled . | . . . Machines Sabotaged . | . . . Overloaded Fab Kills . | . . . Hacking | -11 -10 -10 --------- Run | Yrd Mat Min Machines Accessed . | . . . Terminals . | . . . Fabricators . | . . . Repair Stations . | . . . Recycling Units . | . . . Scanalyzers . | . . . Garrison Access . | . . . Total Hacks . | . . . Successful . | . . . Failed . | . . . Catastrophic . | . . . Database Lockouts . | . . . Manual . | . . . Terminals . | . . . Fabricators . | . . . Repair Stations . | . . . Recycling Units . | . . . Scanalyzers . | . . . Garrison Access . | . . . Terminal Hacks . | . . . Fabricator Hacks . | . . . Repair Station Hacks . | . . . Recycling Unit Hacks . | . . . Scanalyzer . | . . . Garrison Access Hacks . | . . . Unauthorized Hacks . | . . . Terminals . | . . . Fabricators . | . . . Repair Stations . | . . . Recycling Units . | . . . Scanalyzers . | . . . Garrison Access . | . . . Data Cores Recovered . | . . . Used . | . . . Hacking Detections . | . . . Full Trace Events . | . . . Feedback Events . | . . . Feedback Blocked . | . . . Robot Schematics Acquired . | . . . Robots Built . | . . . Authchips . | . . . Time . | . . . Total Robot Build Rating . | . . . Part Schematics Acquired . | . . . Parts Built . | . . . Authchips . | . . . Time . | . . . Total Part Build Rating . | . . . Parts Repaired . | . . . Time . | . . . Parts Recycled . | . . . Recycled Matter . | . . . Retrieved Matter . | . . . Retrieved Components . | . . . Parts Scanalyzed . | . . . Part Schematics Acquired . | . . . Parts Damaged . | . . . Bothacking | -11 -10 -10 ------------ Run | Yrd Mat Min Used RIF Installer . | . . . Robots Hacked . | . . . Non-combat . | . . . Combat . | . . . Robot Hacks Applied . | . . . Relay Couplers Released . | . . . Fabnet Peak Effective % . | . . . Robots Rewired . | . . . Allies Hacked . | . . . Hacks Repelled . | . . . Allies | -11 -10 -10 -------- Run | Yrd Mat Min Total Allies . | . . . Largest Group . | . . . Highest-Rated Group . | . . . Highest-Rated Ally . | . . . Total Orders . | . . . Ally Attacks . | . . . Total Damage . | . . . Kills . | . . . Allies Corrupted . | . . . Allies Melted . | . . . Intel | -11 -10 -10 ------- Run | Yrd Mat Min Robot Analysis Total . | . . . Derelict Logs Recovered 2 | . . 2 Drone Launches . | . . . Drone Recoveries . | . . . Exploration | -11 -10 -10 ------------- Run | Yrd Mat Min Turns Passed 1394 | 140 623 631 Spaces Moved 722 | 80 289 353 Core 3 | 3 . . Treads 129 | 77 52 . Legs 590 | . 237 353 Wheels . | . . . Hover . | . . . Flight . | . . . Fastest Speed 50 | 50 120 120 Average Speed 126 | 155 127 120 Slowest Speed 160 | 160 160 120 Overloaded Moves . | . . . Propulsion Burnouts . | . . . Robots Hopped . | . . . Cave-ins Triggered . | . . . Exploration Rate (%) 30 | 5 37 48 Regions Visited 2 Branch Regions 1 Pre-discovered Areas . | . . . Known Exits Taken . | . . . Unknown Exits Taken 2 | 1 1 . Scrap Searched . | . . . Spaces Dug 24 | . . 24 Terrain Destroyed 89 | . 19 70 Melee . | . . . Projectile . | . . . AOE 89 | . 19 70 Terrain Rammed . | . . . Walls Destroyed . | . . . Machines Disabled . | . . . Actions | -11 -10 -10 --------- Run | Yrd Mat Min Total 1062 | 95 430 537 Wait 192 | . 42 150 Move 720 | 79 288 353 Hop . | . . . Pick Up 31 | 10 15 6 Fast Attach . | . . . Attach 11 | 6 4 1 Detach . | . . . Swap 20 | . 10 10 Drop 12 | . 7 5 Fire 76 | . 64 12 Melee . | . . . Ram . | . . . Kick . | . . . Crush . | . . . Escape Stasis . | . . . Rewire . | . . . Trap . | . . . Miscellaneous . | . . . Route ------- -11/Scrapyard -10/Materials -10/Mines History --------- Turn | Location | Event 64 | -11/Scrapyard | Discovered new exit (range 15) 141 | -11/Scrapyard | Entered Materials 303 | -10/Materials | Build established: Mutant 483 | -10/Materials | Core integrity fell below 50% 596 | -10/Materials | Discovered new exit (range 14) 764 | -10/Materials | Entered Mines 771 | -10/Mines | Received a Rocket Launcher from a helpful Derelict 785 | -10/Mines | Core integrity fell below 20% 851 | -10/Mines | YI-UF0 nonchalantly dropped a Grenade Launcher on the ground 987 | -10/Mines | Build established: Scavenger-Mutant 1290 | -10/Mines | Learned 8 Materials zone layouts 1311 | -10/Mines | Learned location of 1 exit from Materials 1395 | -10/Mines | Destroyed self with Rocket Launcher Last Messages --------------- 01272_ K-01 Serf collects debris. 01272_ Dropped Aluminum Leg. 01272_ Acquired Mining Laser. 01275_ K-01 Serf collects debris. 01275_ R-06 Scavenger collects Aluminum Leg. 01276_ Dropped Sensor Array. 01277_ Acquired Imp. Terrain Scanner. 01278_ Acquired 7 matter. 01280_ K-01 Serf collects debris. 01290_ Acquired derelict log, extracted data. Data stored: Materials zone layouts (x8). 01290_ K-01 Serf collects debris. 01311_ Acquired derelict log, extracted data. Data stored: Materials exits (x1). 01335_ U-05 Engineer lays Concrete. 01339_ U-05 Engineer builds a Wall. 01353_ T-07 Excavator is excavating. 01353_ U-05 Engineer lays Concrete. 01358_ U-05 Engineer builds a Wall. 01395_ Plasma Injector explodes. Map ----- +----------------------------------------------------+ | ?????????????????????????????????????????????????? | | ?????????????????????????????????????????????????? | | ?????????????????????????????????????????????????? | | ?????????????????????????????????????????????????? | | ?????????????????????????????????????????????????? | | ?????????????????????????????????????????????????? | | ?????????????????????????????????????????????????? | | ?????????????????????????????????????????????????? | | ?????????????????????????????????????????????????? | | ?????????????????????????????????????????????????? | | ?????????????????????????????????????????????????? | | ?????????????????????????????????????????????????? | | ?????????????????????????????????? #?????????????? | | ?????????????????????????????????? ??????????????? | | ????????????????????????????????? ????????????? | | ???????????????????????????????? ?????????????? | | ???????????????????????????????#g ?????????????? | | ??????????????????????????????# #??????????????? | | ?????????????????????????????# g #???????????????? | | ????????????????????????##### #???????????????? | | ??????????????? ????????# # #????????????????? | | ????????????????????#???# k ####?????????????? | | ?????????#?????????????## ??????????????? | | ??????????????? ????#??# ##???????????????? | | ??????????##### ????#??# #???????????????? | | ??????????# ?????????#@ #???????????????? | | ?####?????# ??????????# ## ##???????????????? | | ## ##????# #?#?#??????# ##???#????????????????? | | # #????# #??????????# #?????????????????????? | | #???## #??????????# ##????????????????????? | | #???## ######?????# #?????????????????????? | | #???## ## ####### #?????????????????????? | | #??## #########?????????????? | | #### ###### r #?????????????? | | ## ## ##???# ####### #?????????????? | | ##### ##??# #?????# #?????????????? | | #???## ### #?????# #?????????????? | | ##????# ## ###?????# #?????????????? | | # #?????# ##???#??# #?????????????? | | # ##?#???# #####???????# ######????????? | | ## ###????# #####??????????# #????##### | | ?## # ##???# #??????????????###### #??#### # | | ??# #???# #???????#???????????# #??### | | ###= ## ###### #??????#????????????# #??## | | # ## ###?????????????????# #?## # | | ! ## ##?????????????????# #??# ## | | ##????????????????# #?### ## | | #######??????????# #?### ### | | # ## #???????????# #### ## | | ### #### ##### #??????????## ## | +----------------------------------------------------+ Best States ------------- Heat Dissipation 25 Energy Generation 14 Energy Capacity 250 Matter Stores 300 Matter Capacity 300 Sight Range 16 Robot Scan Range 14 Terrain Scan Range 16 Terrain Scan Density 10 Evasion (%) 55 Recoil Reduction 2 Item Schematics ----------------- None Robot Schematics ------------------ None Fabricated ------------ Nothing Alien Tech Used ----------------- None Achievements -------------- None Challenges ------------ None Game ------ Seed SupercompositeBlastTendrils Manual? 0 Play Time 00:16:05 Cumulative 11.2 hours Start 2024.09.01 @ 18:07:33 End 2024.09.01 @ 20:51:27 Sessions 3 Manual Loads 0 Difficulty Rogue Special Mode None Game No. 17 Rogue 17 Adventurer 0 Explorer 0 Win Type - Total 0 Types 0/0/0/0/0/0/0/0/0 Lore% 9 Gallery% 24 Achievement% 17 Wizard Run 0 Options --------- Layout 0 ASCII 0 Keyboard 0 Movement Mouse Keybinds 0 Fullscreen 1 Font 24/Smallcaps Map View 76x50 Zoom Use 0% Tactical HUD 1 Map Filters NONE Filters NONE Steam 1 RUN: da2ca966-cea3-4f61-9b74-ba4cc60a7f7e